bitfinex-derivatives/quotes_BTCF0:USTF0_20250711
["timestamp","ask_amount","ask_price","bid_price","bid_amount"]
[1752214228840,1.56165116,118260.0,118250.0,0.04726]
[1752214229039,1.56225117,118260.0,118250.0,0.04726]
[1752214229431,1.10641527,118260.0,118250.0,0.04726]
[1752214230035,0.1690575,118250.0,118240.0,0.1406114]
[1752214230236,1.26338148,118250.0,118240.0,0.0489514]
[1752214230541,1.36878148,118250.0,118240.0,0.0489514]
[1752214230840,1.36938149,118250.0,118240.0,0.0993514]
[1752214231238,1.36938149,118250.0,118240.0,0.0016914]
[1752214231540,1.73018149,118250.0,118240.0,0.0016914]
[1752214231941,1.36938149,118250.0,118240.0,0.0016914]
[1752214232137,0.63291149,118250.0,118240.0,0.0802714]
[1752214232343,1.26383149,118250.0,118240.0,0.0802714]
[1752214232540,1.26383149,118250.0,118240.0,0.1835714]
[1752214232938,1.30611149,118250.0,118240.0,0.1835714]
[1752214233137,1.30811149,118250.0,118240.0,0.1835714]
[1752214233942,1.66891149,118250.0,118240.0,0.1835714]
[1752214234143,1.77671149,118250.0,118240.0,0.1835714]
[1752214234445,1.77671149,118250.0,118240.0,0.1522514]
[1752214234745,1.77471149,118250.0,118240.0,0.1028514]
[1752214235137,1.60565399,118250.0,118230.0,0.04726]
[1752214235442,0.2959085,118230.0,118220.0,0.04726]
[1752214235636,1.97735808,118230.0,118220.0,0.04726]
[1752214235840,1.97795809,118230.0,118220.0,0.04726]
[1752214236036,1.97795809,118230.0,118220.0,0.07858]
[1752214236237,1.97795809,118230.0,118220.0,0.13098]
[1752214236741,1.97795809,118230.0,118220.0,0.18478]
[1752214238045,2.08595809,118230.0,118220.0,0.18478]
[1752214239041,1.62275411,118230.0,118220.0,0.18478]
[1752214239341,0.16973611,118230.0,118220.0,0.18478]
[1752214239644,1.26166008,118230.0,118220.0,0.18478]
[1752214239846,1.26226009,118230.0,118220.0,0.18478]
[1752214243052,0.79905611,118230.0,118220.0,0.18478]
[1752214243345,1.26226009,118230.0,118220.0,0.18478]
[1752214243647,1.26170009,118230.0,118220.0,0.54558]
[1752214243846,0.79849611,118230.0,118220.0,0.54558]
[1752214244049,1.26170009,118230.0,118220.0,0.190445]
[1752214244350,1.26170009,118230.0,118220.0,0.19043962]
[1752214244546,1.26170009,118230.0,118220.0,0.55123962]
[1752214244748,1.26170009,118230.0,118220.0,0.19243962]
[1752214245146,1.26170009,118230.0,118220.0,0.19343962]
[1752214245852,1.26170009,118230.0,118220.0,0.19043962]
[1752214247044,1.26170009,118230.0,118220.0,0.18478]
[1752214247250,1.26170009,118230.0,118220.0,0.19045484]
[1752214248650,0.79849611,118230.0,118220.0,0.19045484]
[1752214248850,1.26170009,118230.0,118220.0,0.19045484]
[1752214249538,1.62250009,118230.0,118220.0,0.05293484]
[1752214249739,0.1691006,118220.0,118210.0,0.04726]
[1752214249944,1.09830458,118220.0,118210.0,0.04726]
[1752214250254,1.09890459,118220.0,118210.0,0.07858]
[1752214250550,1.67222459,118220.0,118210.0,0.07858]
[1752214250849,1.67222459,118220.0,118210.0,0.18208]
[1752214251045,1.72522459,118220.0,118210.0,0.18208]
[1752214251250,1.72622459,118220.0,118210.0,0.18208]
[1752214251452,0.1691149,118210.0,118200.0,0.04895198]
[1752214251645,1.09831888,118210.0,118200.0,0.00169198]
[1752214251950,1.09891889,118210.0,118200.0,0.00169198]
[1752214253050,1.12005889,118210.0,118200.0,0.00169198]
[1752214253250,1.45642727,118210.0,118180.0,0.4663]
[1752214253449,0.63234758,118190.0,118180.0,0.54501]
[1752214253650,0.63294759,118190.0,118180.0,0.54501]
[1752214254144,0.63294759,118190.0,118180.0,0.4094]
[1752214254350,1.10114759,118190.0,118180.0,0.0486]
[1752214254750,1.10214759,118190.0,118180.0,0.0486]
[1752214255149,1.10219759,118190.0,118180.0,0.0486]
[1752214255343,0.1691579,118180.0,118170.0,0.03011]
[1752214255545,1.72512188,118180.0,118170.0,0.07871]
[1752214255743,1.72572189,118180.0,118170.0,0.07871]
[1752214255952,0.1691722,118170.0,118160.0,0.03146432]
[1752214256250,0.73937618,118170.0,118160.0,0.03146432]
[1752214256452,1.16940843,118170.0,118160.0,0.00169255]
[1752214257649,1.79396843,118170.0,118160.0,0.08040255]
[1752214257853,1.79396843,118170.0,118160.0,0.05029255]
[1752214258046,1.33076445,118170.0,118160.0,0.05329255]
[1752214258245,1.79401843,118170.0,118160.0,0.05329255]
[1752214258446,1.79401843,118170.0,118160.0,0.05029255]
[1752214258648,1.79401843,118170.0,118160.0,0.05129255]
[1752214258952,1.79401843,118170.0,118160.0,0.00269255]
[1752214259155,1.83632843,118170.0,118160.0,0.00269255]
[1752214259356,0.1691865,118160.0,118150.0,0.02977177]
[1752214259557,0.1691865,118160.0,118140.0,0.40546962]
[1752214259558,0.1692008,118150.0,118140.0,0.02977177]
[1752214259757,2.34662478,118150.0,118140.0,0.07837177]
[1752214259954,2.34722479,118150.0,118140.0,0.07837177]
[1752214260448,2.34722479,118150.0,118140.0,0.02977177]
[1752214260652,2.34722479,118150.0,118140.0,0.03377177]
[1752214260849,2.34722479,118150.0,118140.0,0.004]
[1752214261048,0.1692152,118140.0,118130.0,0.02977177]
[1752214261256,1.55702316,118140.0,118130.0,0.02977177]
[1752214261460,1.55762317,118140.0,118130.0,0.02977177]
[1752214261657,1.55762317,118140.0,118120.0,0.12473451]
[1752214261658,0.1692295,118130.0,118120.0,0.12473451]
[1752214261861,1.98465348,118130.0,118120.0,0.13046153]
[1752214262050,1.98525349,118130.0,118120.0,0.13046153]
[1752214262356,0.1692725,118100.0,118090.0,0.07871]
[1752214262557,2.24403648,118100.0,118090.0,0.12881]
[1752214262751,2.29723649,118100.0,118090.0,0.12881]
[1752214263062,0.1692868,118090.0,118080.0,0.0016937]
[1752214263257,1.11333824,118090.0,118080.0,1e-07]
[1752214263453,0.65073427,118090.0,118080.0,1e-07]
[1752214263660,1.11393825,118090.0,118080.0,1e-07]
[1752214264064,0.1693155,118070.0,118060.0,0.0987]
[1752214264260,0.1693299,118060.0,118050.0,0.4203595]
[1752214264460,0.63253388,118060.0,118050.0,0.4627]
[1752214264662,0.1693299,118060.0,118050.0,0.1546]
[1752214264860,0.16992991,118060.0,118050.0,0.1546]
[1752214265060,0.99333388,118060.0,118050.0,0.1546]
[1752214265358,0.99333388,118060.0,118050.0,0.1019]
[1752214265359,0.99393389,118060.0,118050.0,0.1019]
[1752214265663,1.42533011,118060.0,118050.0,0.4627]
[1752214265864,1.42533011,118060.0,118050.0,0.54551]
[1752214266068,0.28006986,118090.0,118070.0,0.0486]
[1752214266261,0.001,118090.0,118080.0,0.6847014]
[1752214266560,0.05927,118100.0,118080.0,1.74424057]
[1752214266763,0.05927,118100.0,118090.0,0.578687]
[1752214266964,0.47194377,118130.0,118100.0,0.1692679]
[1752214267154,0.47194377,118130.0,118120.0,0.0486]
[1752214267155,0.5743484,118130.0,118120.0,0.0486]
[1752214267355,0.5743484,118130.0,118120.0,0.0456]
[1752214267556,1.03755238,118130.0,118120.0,0.1002]
[1752214267962,1.03803239,118130.0,118120.0,0.0972]
[1752214268461,1.03803239,118130.0,118120.0,0.0952]
[1752214268666,0.1692441,118120.0,118110.0,0.3608]
[1752214268865,1.31572808,118120.0,118110.0,0.36128]
[1752214269072,1.26336808,118120.0,118110.0,0.36128]
[1752214269265,1.26336808,118120.0,118110.0,0.41588]
[1752214269666,1.72646808,118120.0,118110.0,0.00048]
[1752214269868,0.1692727,118100.0,118090.0,0.4154]
[1752214270264,0.63247668,118100.0,118090.0,0.10564]
[1752214270459,0.1692871,118090.0,118080.0,0.42712057]
[1752214270660,0.1692871,118090.0,118080.0,0.52785427]
[1752214270966,0.8843629,118100.0,118090.0,0.0486]
[1752214271160,0.88484291,118100.0,118090.0,0.1472]
[1752214271359,0.25440291,118100.0,118090.0,0.1472]
[1752214271573,0.2539229,118100.0,118090.0,0.1472]
[1752214271870,0.1692871,118090.0,118080.0,1e-07]
[1752214272061,0.1693158,118070.0,118060.0,0.01772358]
[1752214272258,0.1269812,118080.0,118060.0,0.06632358]
[1752214272259,0.5050257,118080.0,118060.0,0.06632358]
[1752214272462,0.63196,118070.0,118060.0,0.42752358]
[1752214272664,0.80175581,118070.0,118060.0,0.42800358]
[1752214272872,0.00048001,118070.0,118060.0,0.47660358]
[1752214273073,0.1693158,118070.0,118060.0,0.47660358]
[1752214273268,0.1703158,118070.0,118060.0,0.47660358]
[1752214273467,0.1703158,118070.0,118060.0,0.48160358]
[1752214274175,0.001,118070.0,118060.0,0.44300358]
[1752214274568,0.001,118070.0,118060.0,2.12761766]
[1752214274868,0.002,118090.0,118070.0,0.0486]
[1752214275067,0.002,118090.0,118080.0,1.09276]
[1752214275667,0.63449108,118090.0,118080.0,0.4602]
[1752214275867,0.1703158,118070.0,118060.0,0.07332358]
[1752214276068,2.25971978,118070.0,118060.0,0.1064]
[1752214276268,2.31321978,118070.0,118060.0,0.1064]
[1752214276572,2.31321978,118070.0,118060.0,0.0994]
[1752214276573,2.36381978,118070.0,118060.0,0.0994]
[1752214276772,2.29013912,118070.0,118060.0,0.0994]
[1752214276965,1.2654,118070.0,118060.0,0.4602]
[1752214277165,0.5541615,118080.0,118070.0,0.0486]
[1752214277166,0.63264,118080.0,118070.0,0.0486]
[1752214277369,0.63264,118080.0,118070.0,0.4578]
[1752214277578,0.8042471,118090.0,118070.0,0.4112]
[1752214277777,0.8042471,118090.0,118080.0,0.0504]
[1752214277969,0.8046871,118090.0,118080.0,0.0504]
[1752214279365,0.8046871,118090.0,118080.0,0.0584]
[1752214279570,0.8056871,118090.0,118080.0,0.107]
[1752214279768,0.8056871,118090.0,118080.0,0.4678]
[1752214279971,0.8056871,118090.0,118080.0,0.46932]
[1752214280171,0.8056871,118090.0,118080.0,0.10852]
[1752214280373,0.65583514,118090.0,118080.0,0.4688]
[1752214280573,0.02287514,118090.0,118080.0,0.6385414]
[1752214280873,0.04843825,118090.0,118080.0,0.8079094]
[1752214281068,0.04843825,118090.0,118080.0,1.09304]
[1752214281069,0.21672535,118090.0,118080.0,1.09304]
[1752214281274,0.02243514,118090.0,118080.0,1.2713414]
[1752214281577,0.19172224,118090.0,118080.0,1.2713414]
[1752214281977,0.23716049,118090.0,118080.0,1.2713414]
[1752214282177,0.19172224,118090.0,118080.0,0.6395414]
[1752214282376,0.23716049,118090.0,118080.0,0.6395414]
[1752214282579,0.23716049,118090.0,118080.0,0.47124]
[1752214282770,0.02243514,118090.0,118080.0,0.6405414]
[1752214283174,0.02143514,118090.0,118080.0,0.8009094]
[1752214283482,0.02243514,118090.0,118080.0,0.8099094]
[1752214284068,0.23406224,118090.0,118080.0,0.8099094]
[1752214284272,0.23406224,118090.0,118080.0,1.271488]
[1752214284482,0.23406224,118090.0,118080.0,1.4407894]
[1752214284673,0.23406224,118090.0,118080.0,1.271488]
[1752214284868,0.23406224,118090.0,118080.0,1.10212]
[1752214285068,0.23406224,118090.0,118080.0,0.47124]
[1752214285371,0.2339228,118090.0,118080.0,1.10188]
[1752214285978,0.2550928,118090.0,118080.0,1.10188]
[1752214286172,0.2551428,118090.0,118080.0,0.47124]
[1752214288275,0.69010437,118090.0,118080.0,0.47124]
[1752214288471,0.64510612,118090.0,118080.0,0.47124]
[1752214288675,0.74700612,118090.0,118080.0,0.42084]
[1752214288875,0.74074437,118090.0,118080.0,0.42084]
[1752214289073,0.69530612,118090.0,118080.0,0.52604]
[1752214289271,0.79244437,118090.0,118080.0,0.42084]
[1752214290369,0.74700612,118090.0,118080.0,0.42084]
[1752214290569,0.79244437,118090.0,118080.0,0.42084]
[1752214290877,0.79244437,118090.0,118080.0,0.06004]
[1752214291076,0.79244437,118090.0,118080.0,0.0596]
[1752214291582,0.40292105,118090.0,118080.0,0.0596]
[1752214294082,0.40292105,118090.0,118080.0,0.09234]
[1752214294880,0.76372105,118090.0,118080.0,0.09234]
[1752214295278,1.15324437,118090.0,118080.0,0.09234]
[1752214295473,1.42132437,118090.0,118080.0,0.09234]
[1752214295675,0.79244437,118090.0,118080.0,0.09234]
[1752214295874,0.9863628,118090.0,118080.0,0.45314]
[1752214296080,0.9863628,118090.0,118080.0,0.14298]
[1752214296281,0.9863628,118090.0,118080.0,0.14254]
[1752214296691,0.9863628,118090.0,118080.0,0.50334]
[1752214296892,1.45250493,118090.0,118080.0,0.50378]
[1752214297190,1.40080493,118090.0,118080.0,0.50378]
[1752214297390,0.77192493,118090.0,118080.0,0.50378]
[1752214297695,1.40072493,118090.0,118080.0,0.55438]
[1752214298187,0.0862957,118090.0,118080.0,0.74110815]
[1752214298384,0.13129395,118090.0,118080.0,1.03794788]
[1752214298586,0.0858557,118090.0,118080.0,1.20725028]
[1752214298785,0.0858557,118090.0,118080.0,1.36886815]
[1752214299998,0.2551437,118090.0,118080.0,1.19956575]
[1752214300293,0.2551437,118090.0,118080.0,1.36886805]
[1752214301193,0.2551437,118090.0,118080.0,1.19956575]
[1752214301788,0.72128583,118090.0,118080.0,0.57180575]
[1752214301983,0.0423262,118080.0,118060.0,0.04941]
[1752214302189,2.06829433,118070.0,118060.0,0.08215]
[1752214302385,2.04525793,118070.0,118060.0,0.08215]
[1752214302590,2.45455793,118070.0,118060.0,0.08215]
[1752214303193,2.45511794,118070.0,118060.0,0.08215]
[1752214303590,2.09431794,118070.0,118060.0,0.08215]
[1752214303794,2.09431794,118070.0,118060.0,0.44295]
[1752214304195,2.09531794,118070.0,118060.0,0.09115]
[1752214304393,2.09531794,118070.0,118060.0,0.09315]
[1752214304589,0.02085571,118070.0,118060.0,0.6232811]
[1752214304794,0.0202957,118070.0,118060.0,0.7283211]
[1752214304994,0.0202957,118070.0,118060.0,0.7263211]
[1752214305194,0.0212957,118070.0,118060.0,0.7243211]
[1752214305900,0.1906124,118070.0,118060.0,0.6915811]
[1752214306287,0.2329524,118070.0,118060.0,0.52225]
[1752214306796,0.2329524,118070.0,118060.0,0.6915811]
[1752214306999,0.2319524,118070.0,118060.0,0.6915811]
[1752214307390,0.0626357,118070.0,118060.0,0.6915811]
[1752214307592,0.0626357,118070.0,118060.0,0.8599811]
[1752214307793,0.0626357,118070.0,118060.0,0.8609811]
[1752214307995,0.0626357,118070.0,118060.0,1.4867411]
[1752214308193,0.0626357,118070.0,118060.0,1.4887411]
[1752214308396,0.0626357,118070.0,118060.0,1.4877411]
[1752214308592,0.2319686,118070.0,118060.0,0.72739]
[1752214308793,0.2319686,118070.0,118060.0,0.55799]
[1752214308995,0.71928073,118070.0,118060.0,1.18291]
[1752214309501,0.2531386,118070.0,118060.0,1.18291]
[1752214309691,0.2531386,118070.0,118060.0,1.17491]
[1752214309994,0.2531386,118070.0,118060.0,0.55699]
[1752214310197,0.76471898,118070.0,118060.0,0.45239]
[1752214310398,0.86841898,118070.0,118060.0,0.45239]
[1752214310695,1.18378073,118070.0,118060.0,0.00944]
[1752214310898,1.18378073,118070.0,118060.0,0.009]
[1752214311398,0.1693617,118050.0,118040.0,0.05110427]
[1752214311589,1.63995953,118050.0,118040.0,0.05110427]
[1752214311788,1.78935485,118050.0,118040.0,0.00169427]
[1752214312593,1.78935485,118050.0,118040.0,0.05146427]
[1752214312793,1.78891485,118050.0,118040.0,0.05146427]
[1752214312989,1.78939486,118050.0,118040.0,0.05146427]
[1752214313192,1.8569037,118050.0,118040.0,0.05146427]
[1752214313696,1.86431075,118050.0,118040.0,0.05146427]
[1752214313902,1.86431075,118050.0,118040.0,0.00169427]
[1752214314301,1.86431075,118050.0,118040.0,0.05146427]
[1752214314693,1.8569837,118050.0,118040.0,0.05146427]
[1752214315299,1.8579437,118050.0,118040.0,0.05146427]
[1752214315801,0.8722637,118050.0,118040.0,0.05146427]
[1752214316001,0.25672625,118050.0,118040.0,0.05146427]
[1752214316200,0.88164624,118050.0,118040.0,0.32512377]
[1752214316502,0.88220625,118050.0,118040.0,0.15620427]
[1752214316697,0.88220625,118050.0,118040.0,0.68692337]
[1752214316698,0.64541571,118050.0,118040.0,0.68692337]
[1752214316899,0.02085571,118050.0,118040.0,1.1535055]
[1752214317104,0.0202957,118050.0,118040.0,1.1535055]
[1752214317297,0.1896404,118050.0,118040.0,0.51800427]
[1752214317504,0.1896404,118050.0,118040.0,0.68736337]
[1752214317698,0.0202957,118050.0,118040.0,0.68736337]
[1752214318103,0.0202957,118050.0,118040.0,0.85678737]
[1752214319501,0.1896406,118050.0,118040.0,1.31076357]
[1752214320600,0.1896406,118050.0,118040.0,0.51800427]
[1752214320800,0.1896406,118050.0,118040.0,1.14144427]
[1752214321006,0.1896406,118050.0,118040.0,0.51800427]
[1752214322204,0.1886406,118050.0,118040.0,0.51500427]
[1752214322401,0.65578273,118050.0,118040.0,0.46600427]
[1752214322602,0.75568273,118050.0,118040.0,0.46700427]
[1752214322798,0.1896406,118050.0,118040.0,0.46700427]
[1752214322999,0.1896409,118050.0,118040.0,0.68566377]
[1752214323206,0.1896409,118050.0,118040.0,0.51630427]
[1752214323705,0.1896409,118050.0,118040.0,0.68566387]
[1752214325213,0.0202957,118050.0,118040.0,0.68566387]
[1752214325701,0.0202957,118050.0,118040.0,1.151806]
[1752214326702,0.0202957,118050.0,118040.0,0.71861387]
[1752214327909,0.0202957,118050.0,118040.0,0.71961387]
[1752214328605,0.0202957,118050.0,118040.0,1.34009387]
[1752214329106,0.0626457,118050.0,118040.0,1.34009387]
[1752214329805,0.0626457,118050.0,118040.0,0.71961387]
[1752214330008,0.0817457,118050.0,118040.0,0.71961387]
[1752214330206,0.0817457,118050.0,118040.0,1.33961387]
[1752214330510,0.0817457,118050.0,118040.0,1.800756]
[1752214331009,0.38157922,118080.0,118070.0,0.2022664]
[1752214331205,0.38157922,118080.0,118070.0,1.8023864]
[1752214331407,0.44960922,118080.0,118070.0,1.8527864]
[1752214331705,0.44960922,118080.0,118070.0,1.8507864]
[1752214331907,0.44960922,118080.0,118070.0,1.68447]
[1752214332209,0.44960922,118080.0,118070.0,1.8537863]
[1752214332409,0.49750922,118080.0,118070.0,1.9035563]
[1752214332911,0.50493791,118080.0,118070.0,1.9035563]
[1752214333112,0.50549792,118080.0,118070.0,1.9039963]
[1752214333307,0.45574033,118080.0,118070.0,1.9049963]
[1752214333607,0.45618032,118080.0,118070.0,1.9059963]
[1752214334111,0.45618032,118080.0,118070.0,1.9079963]
[1752214334712,0.45618032,118080.0,118070.0,1.5471963]
[1752214335006,0.48356033,118080.0,118070.0,1.5471963]
[1752214335606,0.48356033,118080.0,118070.0,1.37788]
[1752214335916,0.48356033,118080.0,118070.0,1.73868]
[1752214336412,0.48356033,118080.0,118070.0,0.49936]
[1752214336609,0.48352136,118080.0,118070.0,1.11724]
[1752214336810,0.48352136,118080.0,118070.0,0.75644]
[1752214337010,0.48352136,118080.0,118070.0,1.11724]
[1752214337206,0.94966349,118080.0,118070.0,0.00444]
[1752214337406,1.26480714,118080.0,118070.0,0.004]
[1752214337613,1.32538603,118080.0,118070.0,0.004]
[1752214338107,1.26480714,118080.0,118070.0,0.004]
[1752214339811,1.32538603,118080.0,118070.0,0.004]
[1752214340109,1.26480714,118080.0,118070.0,0.004]
[1752214340315,1.32538603,118080.0,118070.0,0.004]
[1752214341418,1.26480714,118080.0,118070.0,0.004]
[1752214341615,1.32538603,118080.0,118070.0,0.004]
[1752214342016,1.26480714,118080.0,118070.0,0.004]
[1752214342719,1.26480714,118080.0,118070.0,0.08684]
[1752214342912,1.28246969,118080.0,118070.0,0.08684]
[1752214343308,0.92166969,118080.0,118070.0,0.2561577]
[1752214343712,0.92166969,118080.0,118070.0,0.08684]
[1752214344019,1.28246969,118080.0,118070.0,0.08684]
[1752214344520,0.92166969,118080.0,118070.0,0.08684]
[1752214344721,1.28246969,118080.0,118070.0,0.08684]
[1752214344920,0.81632756,118080.0,118070.0,0.08684]
[1752214345213,0.87690645,118080.0,118070.0,0.2561577]
[1752214345413,1.07084756,118080.0,118070.0,0.6169577]
[1752214345607,1.07084756,118080.0,118070.0,0.08684]
[1752214345811,1.08352645,118080.0,118070.0,0.08684]
[1752214347618,1.13402645,118080.0,118070.0,0.44764]
[1752214348020,1.13402645,118080.0,118070.0,0.08684]
[1752214348320,0.31116756,118080.0,118070.0,0.2561577]
[1752214348522,0.36018755,118080.0,118070.0,0.18294]
[1752214348724,0.95415263,118080.0,118070.0,0.08684]
[1752214348921,0.90846713,118080.0,118070.0,0.08684]
[1752214349318,1.26926713,118080.0,118070.0,0.004]
[1752214349524,0.2506721,118060.0,118050.0,0.08028]
[1752214349720,0.2506864,118050.0,118040.0,0.09951627]
[1752214349922,0.81232853,118050.0,118040.0,0.09951627]
[1752214351224,0.3461864,118050.0,118040.0,0.09951627]
[1752214351426,0.04568977,118060.0,118050.0,0.2192364]
[1752214351621,0.06057889,118070.0,118060.0,0.3342752]
[1752214351820,0.04567438,118070.0,118060.0,1.25454963]
[1752214352222,0.04567438,118070.0,118060.0,1.25354963]
[1752214352825,0.04767438,118070.0,118060.0,1.25454963]
[1752214353124,0.04799,118080.0,118060.0,1.22563963]
[1752214353332,0.04799,118080.0,118070.0,1.70768983]
[1752214353521,0.04799,118080.0,118070.0,1.70612983]
[1752214354027,0.04799,118080.0,118070.0,1.70512983]
[1752214354220,0.04899,118080.0,118070.0,1.70512983]
[1752214354425,0.04899,118080.0,118070.0,1.70468983]
[1752214354625,0.04899,118080.0,118070.0,2.12407383]
[1752214355029,0.00205,118090.0,118080.0,0.2025434]
[1752214355222,0.00205,118090.0,118080.0,1.16136248]
[1752214355519,0.07572362,118120.0,118110.0,0.1692604]
[1752214355723,0.218826,118120.0,118110.0,0.73946347]
[1752214355929,0.218826,118120.0,118110.0,1.57288387]
[1752214356326,0.218826,118120.0,118110.0,1.57188387]
[1752214356526,0.24695862,118130.0,118120.0,0.169246]
[1752214356722,0.29653862,118130.0,118120.0,1.04598813]
[1752214356930,0.05158,118130.0,118120.0,0.579846]
[1752214357230,0.002,118130.0,118120.0,1.04598813]
[1752214357620,0.2208117,118130.0,118120.0,0.579846]
[1752214358028,0.2228117,118130.0,118120.0,1.194206]
[1752214358527,0.05358,118130.0,118120.0,1.194206]
[1752214358727,0.05158,118130.0,118120.0,1.194206]
[1752214358929,0.05158,118130.0,118120.0,1.65978813]
[1752214359429,0.05158,118130.0,118120.0,1.193646]
[1752214359732,0.05158,118130.0,118120.0,1.193566]
[1752214359935,0.2208117,118130.0,118120.0,1.193566]
[1752214360126,0.2208617,118130.0,118120.0,1.193566]
[1752214360331,0.05163,118130.0,118120.0,1.193566]
[1752214360835,0.2218617,118130.0,118120.0,1.198566]
[1752214361135,0.05263,118130.0,118120.0,1.199566]
[1752214361726,0.00305,118130.0,118120.0,1.66570813]
[1752214361933,0.00305,118130.0,118120.0,1.83502013]
[1752214362435,0.00305,118130.0,118120.0,1.83802013]
[1752214365434,0.05925,118140.0,118130.0,0.169246]
[1752214365735,0.11996716,118140.0,118130.0,1.04308813]
[1752214365938,0.05925,118140.0,118130.0,0.576946]
[1752214366139,0.05925,118140.0,118130.0,1.191066]
[1752214366638,0.05925,118140.0,118130.0,1.65720813]
[1752214367541,0.05925,118140.0,118130.0,1.04308813]
[1752214367740,0.05925,118140.0,118130.0,1.65712813]
[1752214368134,0.04963,118190.0,118180.0,0.1691744]
[1752214368440,0.2207169,118210.0,118200.0,0.1691458]
[1752214368642,0.05202,118210.0,118200.0,2.24210588]
[1752214368836,0.05158,118210.0,118200.0,2.29164588]
[1752214369033,0.05158,118210.0,118200.0,2.33944588]
[1752214369432,0.05158,118210.0,118200.0,2.69924588]
[1752214369635,0.002,118210.0,118200.0,2.69624588]
[1752214369831,1.04765363,118210.0,118200.0,0.01841795]
[1752214370036,1.14649363,118210.0,118200.0,0.02197795]
[1752214370237,1.40409309,118210.0,118200.0,0.02197795]
[1752214370431,0.2187401,118190.0,118180.0,0.01798192]
[1752214370641,1.04568223,118190.0,118180.0,0.01798192]
[1752214370832,0.2672801,118190.0,118180.0,0.54795632]
[1752214371037,0.2672801,118190.0,118180.0,0.54839632]
[1752214371038,0.2668401,118190.0,118180.0,0.54839632]
[1752214371240,0.09768,118190.0,118180.0,0.59699632]
[1752214371541,0.2668401,118190.0,118180.0,0.42782192]
[1752214371739,0.3124401,118190.0,118180.0,0.59699632]
[1752214372442,0.3144901,118190.0,118180.0,0.59699632]
[1752214372641,0.14533,118190.0,118180.0,0.59699632]
[1752214372841,0.14333,118190.0,118180.0,0.59699632]
[1752214373046,0.14333,118190.0,118180.0,0.66456976]
[1752214373242,0.09773,118190.0,118180.0,0.66756976]
[1752214374738,0.09773,118190.0,118180.0,0.30676976]
[1752214375141,0.09773,118190.0,118180.0,0.66756976]
[1752214375343,0.09773,118190.0,118180.0,0.30676976]
[1752214375542,0.09773,118190.0,118180.0,0.71366976]
[1752214375843,0.04963,118190.0,118180.0,0.35286976]
[1752214376041,0.04963,118190.0,118180.0,0.71366976]
[1752214377138,0.2187901,118190.0,118180.0,0.44979536]
[1752214377342,1.13753223,118190.0,118180.0,0.08899536]
[1752214377644,0.1691887,118170.0,118160.0,0.00169255]
[1752214377844,1.04603083,118170.0,118160.0,0.00169255]
[1752214378046,1.13831084,118170.0,118160.0,0.00169255]
[1752214379244,1.13831084,118170.0,118160.0,0.00269255]
[1752214379643,1.13831084,118170.0,118160.0,0.17189565]
[1752214379947,0.67216871,118170.0,118160.0,0.17389565]
[1752214380640,0.67216871,118170.0,118160.0,0.24136732]
[1752214380944,0.67716871,118170.0,118160.0,0.24036732]
[1752214381144,0.67716871,118170.0,118160.0,0.07116422]
[1752214381651,1.14331084,118170.0,118160.0,0.07116422]
[1752214381845,0.2115345,118150.0,118130.0,0.5723493]
[1752214382043,0.73327383,118140.0,118130.0,0.5304792]
[1752214382243,0.14504,118140.0,118130.0,0.5304792]
[1752214382441,0.1446,118140.0,118130.0,0.5304792]
[1752214382636,0.0499,118140.0,118130.0,1.04772133]
[1752214382841,0.0499,118140.0,118130.0,0.6307792]
[1752214383243,0.0979,118150.0,118140.0,0.1692317]
[1752214383447,0.2671174,118150.0,118140.0,0.71395385]
[1752214383644,0.73325953,118150.0,118140.0,0.08716215]
[1752214383848,0.77979953,118150.0,118140.0,0.25595385]
[1752214384048,0.77979953,118150.0,118140.0,0.08672215]
[1752214384340,0.77979953,118150.0,118140.0,0.25595385]
[1752214384547,0.3136574,118150.0,118140.0,0.25595385]
[1752214384748,0.77935953,118150.0,118140.0,0.25595385]
[1752214384946,0.77983954,118150.0,118140.0,0.25595385]
[1752214385144,0.77983954,118150.0,118140.0,0.09072215]
[1752214385346,0.77983954,118150.0,118140.0,0.25995385]
[1752214385546,0.05038001,118150.0,118140.0,1.06905398]
[1752214385852,0.0964,118160.0,118150.0,0.1692174]
[1752214386048,0.0964,118160.0,118150.0,0.5792174]
[1752214386244,0.2656031,118160.0,118150.0,0.1696974]
[1752214386447,0.77754523,118160.0,118150.0,0.1692174]
[1752214386647,0.1692174,118150.0,118140.0,1.29919285]
[1752214386847,0.2668174,118150.0,118140.0,1.29963285]
[1752214387047,0.3126174,118150.0,118140.0,0.24054215]
[1752214387252,0.77875953,118150.0,118140.0,0.60090215]
[1752214387452,0.14384,118150.0,118140.0,0.60134215]
[1752214387649,0.3136174,118150.0,118140.0,0.60134215]
[1752214388353,0.3156174,118150.0,118140.0,0.60034215]
[1752214389153,0.3156174,118150.0,118140.0,0.60134215]
[1752214390852,0.3136174,118150.0,118140.0,0.60034215]
[1752214391851,0.3136174,118150.0,118140.0,0.43112015]
[1752214392047,0.77975953,118150.0,118140.0,0.07032015]
[1752214392249,1.54133741,118150.0,118140.0,0.23911185]
[1752214392444,2.00747954,118150.0,118140.0,0.23911185]
[1752214392646,2.00747954,118150.0,118140.0,0.06988015]
[1752214392845,2.36827954,118150.0,118140.0,0.001]
[1752214393047,0.1692317,118140.0,118130.0,0.1692378]
[1752214393249,0.78187383,118140.0,118130.0,0.1692378]
[1752214393444,0.78231383,118140.0,118130.0,0.1692378]
[1752214393652,0.219146,118130.0,118120.0,0.00169312]
[1752214393851,2.00908813,118130.0,118120.0,0.17095352]
[1752214394055,2.00956814,118130.0,118120.0,0.00169312]
[1752214394255,2.37036814,118130.0,118120.0,0.00169312]
[1752214394954,2.37336814,118130.0,118120.0,0.00169312]
[1752214395557,2.37436814,118130.0,118120.0,0.00169312]
[1752214395947,2.01356814,118130.0,118120.0,0.00169312]
[1752214396358,2.37436814,118130.0,118120.0,0.00169312]
[1752214398849,0.2501447,118110.0,118100.0,0.38338213]
[1752214399050,0.2501447,118110.0,118100.0,0.00044]
[1752214399051,2.30428683,118110.0,118100.0,0.00044]
[1752214399353,1.57212471,118110.0,118100.0,0.18685161]
[1752214399556,1.57212471,118110.0,118100.0,0.01756261]
[1752214400057,2.03826684,118110.0,118100.0,0.01756261]
[1752214400248,0.250159,118100.0,118090.0,0.76288759]
[1752214400453,0.250159,118100.0,118090.0,0.76332759]
[1752214400654,0.08087,118100.0,118090.0,0.76332759]
[1752214401446,0.08087,118100.0,118090.0,1.22946972]
[1752214401650,0.12899,118120.0,118110.0,0.1740747]
[1752214401849,0.91233031,118120.0,118110.0,0.1740747]
[1752214402052,0.91277031,118120.0,118110.0,0.2726747]
[1752214402250,0.74303,118120.0,118110.0,0.2726747]